bitfinex/quotes_SOLUSD_20260226
["timestamp","ask_amount","ask_price","bid_price","bid_amount"]
[1772122307773,0.50036511,86.269,86.231,0.52590359]
[1772122307942,0.50036511,86.268,86.231,0.52590359]
[1772122309954,11.58976581,86.284,86.251,0.52590359]
[1772122310460,12.09013092,86.284,86.251,0.52590359]
[1772122310666,0.50036511,86.283,86.251,0.52590359]
[1772122311066,11.58990287,86.282,86.252,11.59393405]
[1772122311376,12.09026798,86.282,86.252,11.59393405]
[1772122311671,0.50036511,86.281,86.252,11.59393405]
[1772122313868,0.50036511,86.279,86.252,11.59393405]
[1772122314276,0.50036511,86.299,86.27,9.95454548]
[1772122314480,0.50036511,86.299,86.271,0.52590359]
[1772122314849,0.50036511,86.329,86.281,0.52590359]
[1772122315053,0.50036511,86.328,86.281,0.52590359]
[1772122315372,0.50036511,86.309,86.27,9.95454548]
[1772122316452,0.50036511,86.309,86.251,28.98517118]
[1772122316453,0.50036511,86.289,86.25,9.95454548]
[1772122318356,0.50036511,86.289,86.251,0.52590359]
[1772122318554,0.50036511,86.289,86.26,9.95454548]
[1772122318756,12.08945323,86.289,86.26,9.95454548]
[1772122319758,0.50036511,86.288,86.26,9.95454548]
[1772122320470,0.50036511,86.309,86.271,0.52590359]
[1772122320678,0.50036511,86.318,86.29,9.95454548]
[1772122320977,46.30955045,86.376,86.31,9.95454548]
[1772122320978,0.50036511,86.347,86.31,9.95454548]
[1772122321271,0.50036511,86.347,86.32,9.95454548]
[1772122321464,0.50036511,86.347,86.31,9.95454548]
[1772122321670,0.50036511,86.347,86.311,0.52590359]
[1772122321991,0.50036511,86.347,86.32,9.95454548]
[1772122322270,0.50036511,86.358,86.33,9.95454548]
[1772122322656,0.50036511,86.356,86.323,0.52590359]
[1772122322867,0.50036511,86.349,86.31,9.95454548]
[1772122323072,0.50036511,86.339,86.3,9.95454548]
[1772122323272,0.50036511,86.329,86.292,11.58855977]
[1772122323654,0.50036511,86.329,86.3,9.95454548]
[1772122323854,0.50036511,86.353,86.311,0.52590359]
[1772122324055,11.57983718,86.357,86.33,9.95454548]
[1772122324472,12.08020229,86.357,86.321,0.52590359]
[1772122324671,46.28141054,86.428,86.33,9.95454548]
[1772122324858,46.28141054,86.428,86.341,0.52590359]
[1772122324859,0.50036511,86.379,86.341,0.52590359]
[1772122325058,0.50036511,86.379,86.35,9.95454548]
[1772122325459,0.50036511,86.39,86.36,9.95454548]
[1772122325659,0.50036511,86.39,86.351,0.52590359]
[1772122326258,0.50036511,86.389,86.351,0.52590359]
[1772122326577,0.2,86.4,86.34,10.48044907]
[1772122326578,40.51957673,86.378,86.34,10.48044907]
[1772122326779,0.50036511,86.359,86.32,9.95454548]
[1772122326982,9.95454548,86.34,86.301,0.52590359]
[1772122327157,10.45491059,86.35,86.31,9.95454548]
[1772122327362,10.45491059,86.35,86.311,0.52590359]
[1772122327557,0.50036511,86.377,86.311,0.52590359]
[1772122327758,0.50036511,86.369,86.33,10.48044907]
[1772122327971,0.50036511,86.359,86.32,9.95454548]
[1772122328479,11.57702192,86.378,86.341,0.52590359]
[1772122328681,11.5758158,86.387,86.353,0.52590359]
[1772122328880,0.50036511,86.386,86.35,9.95454548]
[1772122329071,0.50036511,86.386,86.35,21.53529682]
[1772122330184,0.50036511,86.386,86.35,9.95454548]
[1772122330393,0.50036511,86.386,86.351,0.50656163]
[1772122330565,0.50036511,86.386,86.36,9.95454548]
[1772122330766,12.07640355,86.386,86.36,9.95454548]
[1772122331168,12.07640355,86.386,86.357,11.57978553]
[1772122331372,0.50036511,86.386,86.357,11.57978553]
[1772122331577,0.2,86.4,86.381,0.50656163]
[1772122331785,0.52191446,86.399,86.36,9.95454548]
[1772122332788,0.52191446,86.399,86.358,0.50656163]
[1772122332789,0.52191446,86.387,86.336,0.50656163]
[1772122332966,0.52191446,86.387,86.35,9.95454548]
[1772122333377,9.95454548,86.38,86.341,0.50656163]
[1772122333572,0.52191446,86.369,86.333,11.58303983]
[1772122334091,0.52191446,86.369,86.33,9.95454548]
[1772122334270,0.52191446,86.349,86.306,0.50656163]
[1772122334474,0.52191446,86.349,86.31,9.95454548]
[1772122334672,0.52191446,86.359,86.32,9.95454548]
[1772122334894,11.57970309,86.358,86.321,12.09122816]
[1772122335197,11.57970309,86.358,86.33,9.95454548]
[1772122335373,11.57970309,86.358,86.322,0.50656163]
[1772122335694,0.52191446,86.357,86.312,0.50656163]
[1772122335875,0.52191446,86.357,86.32,9.95454548]
[1772122336195,0.52191446,86.349,86.31,9.95454548]
[1772122336705,0.52191446,86.339,86.3,9.95454548]
[1772122336873,0.52191446,86.337,86.3,9.95454548]
[1772122337076,0.52191446,86.329,86.291,11.58869407]
[1772122337269,11.5823855,86.338,86.301,0.50656163]
[1772122337973,0.52191446,86.329,86.291,11.58869407]
[1772122338193,40.53834927,86.338,86.3,9.95454548]
[1772122338488,46.30147564,86.391,86.291,11.58869407]
[1772122338489,0.52191446,86.359,86.32,9.95454548]
[1772122338871,3.69383402,86.391,86.32,9.95454548]
[1772122338872,0.52191446,86.357,86.32,9.95454548]
[1772122339077,0.52191446,86.349,86.31,21.54056669]
[1772122339290,0.52191446,86.349,86.31,9.950499]
[1772122339491,0.52191446,86.349,86.32,9.950499]
[1772122339688,0.52191446,86.349,86.31,9.950499]
[1772122340397,0.52191446,86.349,86.309,11.58627721]
[1772122340398,11.57943492,86.36,86.33,9.950499]
[1772122340578,0.52191446,86.359,86.321,0.50656163]
[1772122340991,11.57970309,86.358,86.33,9.950499]
[1772122341213,0.52191446,86.369,86.331,0.50656163]
[1772122341594,0.52191446,86.366,86.331,0.50656163]
[1772122342593,0.52191446,86.366,86.298,46.35068789]
[1772122342594,0.52191446,86.339,86.29,9.950499]
[1772122342789,0.52191446,86.339,86.31,9.950499]
[1772122343009,0.52191446,86.347,86.31,9.950499]
[1772122343185,0.52191446,86.347,86.31,10.45706063]
[1772122343585,9.950499,86.34,86.31,0.50656163]
[1772122343783,0.52191446,86.339,86.301,0.50656163]
[1772122344008,9.950499,86.37,86.331,0.50656163]
[1772122344317,0.52191446,86.38,86.341,0.50656163]
[1772122344609,0.52191446,86.38,86.35,9.950499]
[1772122345289,11.57584322,86.387,86.36,9.950499]
[1772122345493,11.57584322,86.387,86.35,10.45706063]
[1772122345988,11.57584322,86.387,86.36,9.950499]
[1772122346395,11.57584322,86.387,86.35,10.45706063]
[1772122346820,11.57584322,86.387,86.36,9.950499]
[1772122347190,0.52191446,86.386,86.35,9.950499]
[1772122347385,0.52191446,86.386,86.342,12.08833829]
[1772122347697,0.52191446,86.386,86.35,9.950499]
[1772122348093,0.52191446,86.386,86.341,0.50656163]
[1772122348294,0.52191446,86.386,86.35,9.950499]
[1772122348986,9.950499,86.38,86.34,9.950499]
[1772122349187,0.52191446,86.379,86.34,9.950499]
[1772122349591,0.52191446,86.359,86.31,9.950499]
[1772122349820,0.52191446,86.359,86.301,0.50656163]
[1772122349821,0.52191446,86.349,86.301,12.09378005]
[1772122350117,0.52191446,86.349,86.31,9.950499]
[1772122350291,0.52191446,86.359,86.321,0.50656163]
[1772122350496,0.52191446,86.359,86.31,10.45706063]
[1772122350696,0.52191446,86.349,86.31,10.45706063]
[1772122350907,0.52191446,86.349,86.31,9.950499]
[1772122351107,11.58104414,86.348,86.31,21.53655349]
[1772122351309,0.52191446,86.347,86.31,9.950499]
[1772122351517,0.52191446,86.339,86.29,9.950499]
[1772122352006,0.52191446,86.339,86.3,9.950499]
[1772122352710,0.52191446,86.339,86.291,0.50656163]
[1772122353095,0.52191446,86.329,86.29,9.950499]
[1772122353505,0.52191446,86.319,86.28,9.950499]
[1772122353994,0.52191446,86.319,86.271,0.50656163]
[1772122354196,0.52191446,86.309,86.27,9.950499]
[1772122354411,0.52191446,86.309,86.271,0.50656163]
[1772122354816,0.52191446,86.299,86.264,11.59225843]
[1772122355114,0.52191446,86.332,86.291,0.50656163]
[1772122355427,12.10519527,86.332,86.3,9.950499]
[1772122356628,12.10519527,86.332,86.301,11.58735124]
[1772122356800,11.58328081,86.332,86.301,12.09391287]
[1772122357001,11.58198306,86.341,86.31,9.950499]
[1772122357220,11.58198306,86.341,86.311,0.50656163]
[1772122358004,11.58198306,86.341,86.31,9.950499]
[1772122358199,11.58198306,86.341,86.311,0.54369698]
[1772122359220,0.5039166,86.344,86.312,11.5858745]
[1772122359432,11.58171478,86.343,86.312,11.5858745]
[1772122360007,0.5039166,86.344,86.312,12.12247464]
[1772122360220,12.08553131,86.344,86.313,0.53660014]
[1772122360720,11.57863047,86.366,86.331,0.53660014]
[1772122360900,0.49496255,86.365,86.33,9.950499]
[1772122361296,11.57889861,86.364,86.331,11.58332464]
[1772122361915,12.07386116,86.364,86.331,11.58332464]
[1772122363039,0.49496255,86.359,86.291,0.53660014]
[1772122363325,0.49496255,86.329,86.29,9.950499]
[1772122363722,0.49496255,86.329,86.291,0.53660014]
[1772122364227,0.49496255,86.329,86.3,9.950499]
[1772122364701,0.49496255,86.319,86.271,0.53660014]
[1772122364906,0.49496255,86.299,86.26,10.48709914]
[1772122365425,0.49496255,86.297,86.261,11.5927244]
[1772122365623,0.49496255,86.297,86.261,12.12932454]
[1772122365926,11.58723774,86.302,86.27,9.950499]
[1772122367339,11.58723774,86.302,86.243,3.69383402]
[1772122367340,0.49496255,86.318,86.281,11.5900372]
[1772122367533,0.49496255,86.318,86.29,9.950499]
[1772122367729,11.58444223,86.323,86.291,0.53660014]
[1772122368712,0.49496255,86.319,86.28,9.950499]
[1772122369628,0.49496255,86.309,86.27,9.950499]
[1772122369831,0.49496255,86.309,86.261,0.53660014]
[1772122370131,0.49496255,86.309,86.27,9.950499]
[1772122371515,0.49496255,86.299,86.26,9.950499]
[1772122371831,0.49496255,86.308,86.27,9.950499]
[1772122372011,0.49496255,86.308,86.271,0.53660014]
[1772122372215,0.49496255,86.308,86.28,9.950499]
[1772122372420,11.58493495,86.319,86.281,0.53660014]
[1772122372634,0.49496255,86.318,86.281,0.53660014]
[1772122373729,12.08016592,86.317,86.282,11.58990287]
[1772122373910,0.49496255,86.316,86.282,11.58990287]
[1772122374315,28.95879994,86.33,86.29,9.950499]
[1772122374316,9.950499,86.33,86.29,9.950499]
[1772122374516,127.48869318,86.623,86.282,11.58990287]
[1772122374517,12.07614081,86.347,86.31,9.950499]
[1772122374832,0.49496255,86.346,86.31,9.950499]
[1772122375132,0.49496255,86.346,86.32,9.950499]
[1772122375337,0.49496255,86.346,86.31,9.950499]
[1772122375722,0.49496255,86.344,86.31,21.53657141]
[1772122376335,0.49496255,86.339,86.3,9.950499]
[1772122376538,0.49496255,86.329,86.29,21.53932736]
[1772122377737,0.49496255,86.327,86.29,21.53932736]
[1772122378243,11.58372718,86.328,86.3,9.950499]
[1772122378445,0.49496255,86.337,86.3,9.950499]
[1772122378446,11.58315579,86.333,86.3,9.950499]
[1772122378631,0.49496255,86.347,86.31,9.950499]
[1772122378947,0.49496255,86.345,86.31,9.950499]
[1772122379164,11.58131239,86.346,86.29,40.56089928]
[1772122379165,0.49496255,86.339,86.3,9.950499]
[1772122379330,0.49496255,86.329,86.29,9.950499]
[1772122379521,0.49496255,86.329,86.291,11.58869407]
[1772122379721,11.58372718,86.328,86.3,9.950499]
[1772122380521,0.49496255,86.327,86.29,9.950499]
[1772122380727,0.49496255,86.309,86.27,9.950499]
[1772122380922,0.49496255,86.309,86.257,0.53660014]
[1772122380923,0.49496255,86.299,86.26,9.950499]
[1772122381844,9.950499,86.29,86.251,11.59406847]
[1772122382055,40.55713921,86.298,86.251,11.59406847]
[1772122382056,0.49496255,86.289,86.251,11.59406847]
[1772122382349,0.49496255,86.289,86.26,9.950499]
[1772122382558,0.49496255,86.289,86.24,11.5955473]
[1772122382747,0.49496255,86.289,86.25,9.950499]
[1772122384746,0.49496255,86.289,86.223,3.69383402]
[1772122384747,0.49496255,86.259,86.21,21.55000281]
[1772122385051,0.49496255,86.249,86.21,22.08660295]
[1772122385231,0.49496255,86.249,86.22,9.950499]
[1772122385433,0.49496255,86.249,86.21,9.950499]
[1772122385628,0.49496255,86.249,86.207,11.59985247]
[1772122385829,0.49496255,86.249,86.21,9.950499]
[1772122386032,0.49496255,86.249,86.2,10.050499]
[1772122386232,0.49496255,86.239,86.2,10.050499]
[1772122386446,0.49496255,86.239,86.2,22.18798868]
[1772122386648,3.69383402,86.27,86.2,22.18798868]
[1772122386649,11.59447175,86.248,86.211,0.53660014]
[1772122388041,41.07561368,86.248,86.211,0.53660014]
[1772122388345,41.07561368,86.248,86.2,0.1]
[1772122388346,0.49496255,86.239,86.2,0.1]
[1772122388734,12.09077877,86.238,86.2,10.58709914]
[1772122388953,0.49496255,86.269,86.23,9.950499]
[1772122389135,0.49496255,86.268,86.23,9.950499]
[1772122389652,0.49496255,86.268,86.24,9.950499]
[1772122389851,11.59164937,86.269,86.24,9.950499]
[1772122390030,11.5904402,86.278,86.24,9.950499]
[1772122390226,11.5904402,86.278,86.203,3.69383402]
[1772122390227,11.58909697,86.288,86.25,10.48832088]
[1772122390434,11.58909697,86.288,86.251,0.53782188]
[1772122390655,12.12438503,86.288,86.251,0.53782188]
[1772122390951,0.53528806,86.287,86.253,0.53782188]
[1772122391138,0.53528806,86.287,86.252,11.59393405]
[1772122391337,0.53528806,86.287,86.26,9.950499]
[1772122391551,0.53528806,86.287,86.252,11.59393405]
[1772122391759,0.53528806,86.308,86.27,9.950499]
[1772122392546,0.53528806,86.308,86.28,9.950499]
[1772122392754,11.5865457,86.307,86.28,9.950499]
[1772122393850,40.55290995,86.307,86.28,9.950499]
[1772122394254,11.5865457,86.307,86.28,9.950499]
[1772122394634,11.5865457,86.307,86.28,21.54066709]
[1772122394855,11.5865457,86.307,86.28,9.950499]
[1772122395369,0.53528806,86.309,86.28,21.54062287]
[1772122395569,0.53528806,86.327,86.29,9.950499]
[1772122395743,0.53528806,86.327,86.291,0.53782188]
[1772122396845,0.53528806,86.317,86.28,21.54062287]
[1772122397092,0.53528806,86.317,86.28,9.950499]
[1772122397359,0.53528806,86.299,86.26,9.950499]
[1772122398260,0.53528806,86.299,86.27,9.950499]
[1772122399148,46.33363992,86.331,86.249,40.58018063]
[1772122399149,0.53528806,86.297,86.25,9.950499]
[1772122399350,0.53528806,86.289,86.25,9.950499]
[1772122399549,0.53528806,86.279,86.24,9.950499]
[1772122399761,0.53528806,86.269,86.23,9.950499]
[1772122399967,0.53528806,86.269,86.23,21.54739103]
[1772122401177,9.950499,86.27,86.24,9.950499]
[1772122401178,0.53528806,86.267,86.24,9.950499]
[1772122401355,11.59162214,86.27,86.24,9.96525861]
[1772122401557,0.53528806,86.289,86.25,9.96525861]
[1772122401772,0.53528806,86.269,86.23,9.96525861]
[1772122401976,0.53528806,86.259,86.22,9.96525861]
[1772122402154,0.53528806,86.259,86.221,0.53782188]
[1772122402358,0.53528806,86.269,86.231,0.53782188]
[1772122402674,0.53528806,86.269,86.22,9.96525861]
[1772122402878,0.53528806,86.259,86.22,9.96525861]
[1772122403766,0.53528806,86.268,86.231,0.53782188]
[1772122404661,0.53528806,86.268,86.24,9.96525861]
[1772122404858,11.59112929,86.273,86.24,10.50308049]
[1772122405577,0.53528806,86.272,86.24,9.96525861]
[1772122406258,9.96525861,86.28,86.242,0.53782188]
[1772122406463,0.53528806,86.282,86.25,9.96525861]
[1772122406676,11.5900372,86.281,86.25,9.96525861]
[1772122406973,9.96525861,86.28,86.24,9.96525861]
[1772122407182,0.53528806,86.269,86.23,9.96525861]
[1772122409176,40.57124309,86.268,86.23,21.56209827]
[1772122409475,0.53528806,86.267,86.23,9.96525861]
[1772122409681,0.53528806,86.259,86.22,9.96525861]
[1772122409881,0.53528806,86.259,86.22,21.56349567]
[1772122410776,0.53528806,86.259,86.23,9.96525861]
[1772122410977,11.59178374,86.268,86.24,9.96525861]
[1772122411185,11.59178374,86.268,86.24,10.50308049]
[1772122411582,0.53528806,86.269,86.23,9.96525861]
[1772122411785,0.53528806,86.269,86.231,11.59675754]
[1772122412382,0.53528806,86.269,86.24,9.96525861]
[1772122414070,3.69383402,86.299,86.204,104.4029069]
[1772122414071,0.53528806,86.279,86.25,9.96525861]
[1772122415163,0.53528806,86.279,86.242,0.53782188]
[1772122415164,0.53528806,86.278,86.241,11.59541285]
[1772122415682,0.53528806,86.269,86.231,11.59675754]
[1772122415902,0.53528806,86.259,86.22,9.96525861]
[1772122416081,0.53528806,86.259,86.216,12.13651848]
[1772122416082,0.53528806,86.257,86.216,12.13651848]
[1772122416777,0.53528806,86.249,86.16,9.96525861]
[1772122416994,0.53528806,86.219,86.17,9.96525861]
[1772122417187,0.53528806,86.209,86.175,11.60423984]
[1772122417392,0.53528806,86.199,86.16,9.96525861]
[1772122417588,0.49547109,86.189,86.15,9.96525861]
[1772122417995,0.49547109,86.189,86.16,9.96525861]
[1772122418702,11.60254327,86.188,86.16,9.96525861]
[1772122419083,0.49547109,86.187,86.156,11.60676405]
[1772122419579,0.49547109,86.187,86.15,21.57291634]
[1772122420892,0.53244492,86.185,86.145,0.49811611]
[1772122421093,0.53244492,86.185,86.15,9.96525861]
[1772122421291,9.96525861,86.18,86.141,11.60887382]
[1772122421487,0.53244492,86.179,86.15,9.96525861]
[1772122421900,12.1349531,86.189,86.151,0.49811611]
[1772122422113,0.53244492,86.188,86.151,0.49811611]
[1772122422801,0.53244492,86.199,86.161,0.49811611]
[1772122423498,11.60048422,86.204,86.171,0.49811611]
[1772122424300,12.1308165,86.219,86.181,0.49811611]
[1772122424598,0.53244492,86.199,86.162,11.60604442]
[1772122425097,0.53244492,86.199,86.162,12.10416053]
[1772122425311,0.53244492,86.199,86.163,0.49811611]
[1772122425497,11.60119724,86.198,86.164,11.60577503]
[1772122425697,0.53244492,86.197,86.164,11.60577503]
[1772122425890,0.53244492,86.197,86.165,0.49811611]
[1772122426901,0.53244492,86.216,86.18,9.96525861]
[1772122427093,0.53244492,86.226,86.191,0.49811611]
[1772122427293,0.53244492,86.226,86.19,9.96525861]
[1772122427501,0.53244492,86.224,86.191,11.60213943]
[1772122428392,0.53244492,86.239,86.201,0.49811611]
[1772122428588,0.53244492,86.229,86.192,0.49811611]
[1772122429206,0.53244492,86.229,86.2,9.96525861]
[1772122429504,12.12960593,86.228,86.194,0.49811611]
[1772122429706,0.53244492,86.239,86.201,0.49811611]
[1772122429893,11.59520557,86.243,86.211,0.49811611]
[1772122430498,0.53244492,86.258,86.221,0.49811611]
[1772122430804,0.53244492,86.282,86.251,0.49811611]
[1772122431009,0.53244492,86.292,86.261,0.49811611]
[1772122431189,11.58869407,86.291,86.261,0.49811611]
[1772122431390,0.53244492,86.29,86.26,9.96525861]
[1772122431602,0.53244492,86.289,86.26,9.96525861]
[1772122431904,46.32416232,86.349,86.27,9.96525861]
[1772122431905,11.58694846,86.304,86.27,9.96525861]
[1772122432317,11.58694846,86.304,86.28,9.96525861]
[1772122432497,11.5861703,86.31,86.28,9.96525861]
[1772122432809,11.5861703,86.31,86.271,0.49811611]
[1772122432810,0.53244492,86.337,86.3,9.96525861]
[1772122432988,0.53244492,86.347,86.31,9.96525861]
[1772122433193,0.53244492,86.347,86.311,0.49811611]
[1772122433406,11.58131239,86.346,86.311,12.08408309]
[1772122433601,0.53244492,86.345,86.311,0.49811611]
[1772122433801,9.96525861,86.36,86.321,0.49811611]
[1772122434012,0.53244492,86.349,86.31,9.96525861]
[1772122434509,0.53244492,86.339,86.3,9.96525861]
[1772122435194,0.53244492,86.339,86.3,10.46337472]
[1772122435393,40.52849152,86.359,86.278,12.08842555]
[1772122435394,0.53244492,86.319,86.278,12.08842555]
[1772122435595,0.53244492,86.319,86.226,46.3893194]
[1772122435596,0.53244492,86.309,86.271,0.49811611]
[1772122435803,10.49770353,86.32,86.281,0.49811611]
[1772122436003,41.07549005,86.328,86.291,0.49811611]
[1772122436211,0.53244492,86.327,86.291,0.49811611]
[1772122437196,0.53244492,86.319,86.28,9.96525861]
[1772122437701,11.58506916,86.318,86.28,10.46337472]
[1772122437910,11.58506916,86.318,86.281,0.49811611]
[1772122438106,11.58449553,86.323,86.291,0.49811611]
[1772122438694,38.92059352,86.34,86.301,0.49811611]
[1772122439111,39.45303844,86.34,86.301,0.49811611]
[1772122439295,0.53244492,86.339,86.301,0.49811611]
[1772122439497,0.53244492,86.338,86.301,0.49811611]
[1772122439804,11.58251966,86.337,86.303,0.49811611]
[1772122440006,12.11340485,86.349,86.32,9.96525861]
[1772122440210,0.53244492,86.348,86.311,0.49811611]
[1772122441317,0.53244492,86.329,86.29,9.96525861]
[1772122441507,0.53244492,86.329,86.286,0.49811611]
[1772122441705,0.53244492,86.329,86.29,9.96525861]
[1772122442019,0.53244492,86.327,86.29,9.96525861]
[1772122442800,0.53244492,86.327,86.287,11.58923128]
[1772122443116,0.53244492,86.309,86.27,21.55666417]
[1772122443322,0.53244492,86.309,86.263,0.49811611]
[1772122443323,0.53244492,86.299,86.263,0.49811611]
[1772122443617,0.53244492,86.289,86.242,0.49811611]
[1772122443819,0.53244492,86.299,86.261,0.49811611]
[1772122444005,11.58775406,86.298,86.263,0.49811611]
[1772122444396,9.96525861,86.31,86.271,0.49811611]
[1772122444601,0.53244492,86.312,86.28,9.96525861]
[1772122444820,9.96525861,86.31,86.271,0.49811611]
[1772122445431,40.54304513,86.328,86.261,40.57449227]
[1772122445432,0.53244492,86.322,86.281,0.49811611]
[1772122446022,12.11708176,86.322,86.291,11.58869407]
[1772122446720,12.11708176,86.322,86.28,9.96525861]
[1772122446927,0.53244492,86.309,86.27,9.96525861]
[1772122447405,0.53244492,86.309,86.272,0.49811611]
[1772122447925,11.58641145,86.308,86.273,11.59111193]
[1772122448217,11.58641145,86.308,86.273,12.08922804]
[1772122448929,0.53244492,86.307,86.27,9.96525861]
[1772122449238,0.53244492,86.299,86.26,9.96525861]
[1772122449904,0.50755304,86.297,86.26,9.96525861]
[1772122450108,0.50755304,86.297,86.19,19.04872861]
[1772122450109,0.50755304,86.289,86.242,11.59518707]
[1772122450409,0.50755304,86.269,86.232,0.51114155]
[1772122450613,0.50755304,86.269,86.222,0.51114155]
[1772122451421,0.50755304,86.259,86.222,0.51114155]
[1772122451624,9.96525861,86.28,86.241,0.51114155]
[1772122452207,11.59030586,86.279,86.243,0.51114155]
[1772122453208,9.96525861,86.29,86.251,0.51114155]
[1772122453729,0.50755304,86.289,86.251,0.51114155]
[1772122454430,0.50755304,86.269,86.23,9.96525861]
[1772122454629,0.50755304,86.269,86.23,10.47640016]
[1772122455009,0.50755304,86.269,86.231,11.59675754]
[1772122455405,0.50755304,86.269,86.232,0.51114155]
[1772122455829,9.96525861,86.28,86.241,0.51114155]
[1772122456211,0.50755304,86.278,86.23,10.47640016]
[1772122456412,0.50755304,86.259,86.22,10.47640016]
[1772122458432,11.59312759,86.258,86.221,11.59810255]
[1772122458645,11.59312759,86.258,86.222,0.51114155]
[1772122458822,11.59312759,86.258,86.221,11.59810255]
[1772122458823,11.59030586,86.279,86.251,0.51114155]
[1772122459422,0.50755304,86.278,86.236,0.51114155]
[1772122459623,0.50755304,86.278,86.24,9.96525861]
[1772122460228,0.50755304,86.269,86.236,0.51114155]
[1772122461040,11.59178374,86.268,86.241,0.51114155]
[1772122461444,0.50755304,86.267,86.23,9.96525861]
[1772122461616,0.50755304,86.267,86.231,0.51114155]
[1772122461820,0.50755304,86.267,86.24,9.96525861]
[1772122462923,0.50755304,86.299,86.26,9.96525861]
[1772122463118,0.50755304,86.297,86.26,9.96525861]
[1772122463318,0.50755304,86.297,86.26,9.96203029]
[1772122463527,0.50755304,86.297,86.252,0.51114155]
[1772122464146,0.50755304,86.297,86.261,0.51114155]
[1772122464341,0.50755304,86.289,86.233,11.59648858]
[1772122464537,86.90815545,86.298,86.24,9.96203029]
[1772122464538,0.50755304,86.279,86.24,9.96203029]
[1772122465041,9.96203029,86.27,86.234,0.51114155]
[1772122465245,0.50755304,86.277,86.241,0.51114155]
[1772122465645,0.50755304,86.297,86.251,0.51114155]
[1772122465843,9.96203029,86.29,86.26,9.96203029]
[1772122466024,0.50755304,86.297,86.26,9.96203029]
[1772122466427,0.50755304,86.297,86.261,0.51114155]
[1772122466626,9.96203029,86.3,86.261,0.51114155]
[1772122466627,0.50755304,86.295,86.261,0.51114155]
[1772122467250,0.50755304,86.293,86.254,11.59357107]
[1772122467546,0.50755304,86.293,86.254,12.10471262]
[1772122468145,0.50755304,86.293,86.255,0.51114155]
[1772122468642,0.50755304,86.289,86.25,9.96203029]
[1772122468949,0.50755304,86.279,86.245,0.51114155]
[1772122469344,11.5904402,86.278,86.245,0.51114155]
[1772122469546,12.09799324,86.278,86.245,0.51114155]
[1772122469732,11.5904402,86.278,86.247,0.51114155]
[1772122470358,0.50755304,86.277,86.247,0.51114155]
[1772122470729,0.50755304,86.286,86.251,0.51114155]
[1772122471143,9.96203029,86.28,86.251,0.51114155]
[1772122471353,10.46958333,86.28,86.251,0.51114155]
[1772122471539,12.0978589,86.279,86.251,0.51114155]
[1772122471940,0.50755304,86.278,86.241,0.51114155]
[1772122472953,11.59030586,86.279,86.241,0.51114155]
[1772122473948,0.50755304,86.285,86.243,0.51114155]
[1772122474855,0.50755304,86.269,86.23,9.96203029]
[1772122475062,0.50755304,86.259,86.223,0.51114155]
[1772122476136,11.59312759,86.258,86.225,0.51114155]
[1772122476331,0.50755304,86.257,86.225,0.51114155]
[1772122476547,0.50755304,86.257,86.216,0.51114155]
[1772122476948,0.50755304,86.257,86.221,0.51114155]
[1772122477757,3.69383402,86.283,86.231,0.50191352]
[1772122477758,11.59197679,86.267,86.231,0.50191352]
[1772122477958,11.59197679,86.267,86.241,0.50191352]
[1772122478640,11.59121585,86.273,86.243,0.50191352]
[1772122479670,28.96960269,86.298,86.261,0.52656107]
[1772122479948,0.51183235,86.279,86.243,0.52656107]
[1772122480255,9.96203029,86.26,86.234,0.52656107]
[1772122480435,10.47386264,86.26,86.225,0.52656107]
[1772122480951,10.47386264,86.26,86.221,11.59810069]
[1772122480952,0.51183235,86.269,86.231,0.52656107]
[1772122481852,41.07837306,86.278,86.241,0.52656107]
[1772122482039,0.51183235,86.277,86.241,0.52656107]
[1772122482446,11.59070888,86.276,86.243,0.52656107]
[1772122482642,11.59070888,86.276,86.251,0.52656107]
[1772122484254,0.51183235,86.284,86.251,0.52656107]
[1772122484755,0.51183235,86.284,86.253,0.52656107]
[1772122486549,0.51183235,86.284,86.25,9.96203029]
[1772122486550,0.51183235,86.269,86.23,9.96203029]
[1772122487060,0.51183235,86.259,86.22,9.96203029]
[1772122487564,0.51183235,86.259,86.222,0.52656107]
[1772122487755,0.51183235,86.289,86.251,0.52656107]
[1772122487963,0.51183235,86.289,86.26,9.96203029]
[1772122488351,3.69383402,86.309,86.271,0.52656107]
[1772122488352,0.51183235,86.309,86.271,0.52656107]
[1772122488744,9.96203029,86.32,86.281,0.52656107]
[1772122488745,0.51183235,86.319,86.281,0.52656107]
[1772122488940,0.51183235,86.319,86.29,9.96203029]
[1772122489959,11.58506916,86.318,86.29,21.55078389]
[1772122490761,0.51183235,86.319,86.29,21.55078389]
[1772122490963,0.51183235,86.319,86.29,22.07734496]
[1772122491454,11.58446965,86.323,86.291,0.52656107]
[1772122491769,11.58367626,86.329,86.301,0.52656107]
[1772122492359,0.51183235,86.34,86.302,0.52656107]
[1772122492554,0.51183235,86.339,86.3,9.96203029]
[1772122493553,0.51183235,86.339,86.301,11.58735124]
[1772122493948,0.51183235,86.337,86.31,9.96203029]
[1772122494165,11.58175167,86.343,86.311,0.52656107]
[1772122494371,11.58175167,86.343,86.32,9.96203029]
[1772122495165,11.58175167,86.343,86.312,11.5858745]